bitfinex-derivatives/quotes_ETHF0:USTF0_20241229
["timestamp","ask_amount","ask_price","bid_price","bid_amount"]
[1735477119409,0.29508,3394.1,3393.8,42.022]
[1735477119608,0.9059,3394.0,3393.8,42.022]
[1735477120509,0.9059,3394.0,3393.8,42.3171]
[1735477120697,3.21007925,3394.0,3393.8,42.022]
[1735477120902,3.21007925,3394.0,3393.9,0.2951]
[1735477123403,3.21007925,3394.0,3393.8,42.3171]
[1735477124507,3.21007925,3394.0,3393.9,0.2951]
[1735477124707,3.21007925,3394.0,3393.8,42.022]
[1735477124914,2.30417925,3393.9,3393.8,42.31711]
[1735477131217,2.30417925,3393.9,3393.8,1.51711]
[1735477133216,4.36038281,3394.0,3393.9,0.2951]
[1735477134120,4.36038281,3394.0,3393.7,40.8]
[1735477134410,0.29512,3393.7,3393.6,3.2078]
[1735477134909,0.29511,3393.8,3393.6,3.2078]
[1735477135310,0.4237,3393.7,3393.6,3.2078]
[1735477135711,3.8816931,3393.7,3393.6,3.2078]
[1735477135907,3.8816931,3393.7,3393.6,3.50292]
[1735477138116,3.4579931,3393.7,3393.6,3.50292]
[1735477138422,3.4579931,3393.7,3393.6,3.93662]
[1735477139521,2.30486412,3393.8,3393.7,0.29512]
[1735477140322,0.29512,3393.7,3393.6,4.4298]
[1735477140518,2.30486412,3393.8,3393.6,4.72492]
[1735477140821,3.4579931,3393.8,3393.6,4.72492]
[1735477141622,3.7531031,3393.8,3393.6,4.4298]
[1735477142114,3.7531031,3393.8,3393.6,4.72492]
[1735477142115,4.90352507,3393.8,3393.6,4.72492]
[1735477142514,4.60841507,3393.8,3393.2,3.2078]
[1735477142722,4.60841507,3393.8,3393.3,0.29515]
[1735477143522,0.29513,3393.6,3393.3,0.29515]
[1735477143824,2.30390331,3393.4,3393.3,0.29515]
[1735477145518,2.30390331,3393.5,3393.4,0.29514]
[1735477146023,2.30390331,3393.5,3393.3,1.208]
[1735477146219,1.3128,3393.4,3393.1,40.8]
[1735477146425,1.60795,3393.4,3393.1,42.30317]
[1735477147120,0.29519,3392.9,3392.8,4.63151588]
[1735477147317,0.29518,3393.0,3392.8,4.63151588]
[1735477147522,0.4298,3392.9,3392.8,4.63151588]
[1735477147826,0.4298,3392.9,3392.8,4.92670588]
[1735477148026,0.4298,3392.9,3392.8,0.29519]
[1735477151922,2.30390331,3393.1,3393.0,0.29518]
[1735477152126,2.30390331,3393.2,3393.1,0.29517]
[1735477152424,2.30390331,3393.2,3393.1,41.09517]
[1735477153433,7.11245496,3393.3,3393.1,40.8]
[1735477153434,3.6566,3393.3,3393.1,40.8]
[1735477153728,3.6566,3393.3,3393.2,0.29516]
[1735477154337,0.4488,3393.3,3393.2,0.29516]
[1735477154535,2.76730331,3393.4,3393.1,44.0078]
[1735477154835,2.76730331,3393.4,3393.3,0.29515]
[1735477155546,2.30390331,3393.4,3393.3,0.29515]
[1735477156542,2.30390331,3393.7,3393.6,0.29512]
[1735477157637,0.4435,3393.8,3393.7,0.29512]
[1735477162746,2.74740331,3393.8,3393.7,0.29512]
[1735477163545,2.74740331,3393.8,3393.4,4.0545]
[1735477164138,0.4435,3393.8,3393.4,4.0545]
[1735477164345,0.4435,3393.8,3393.7,0.29512]
[1735477164844,0.4435,3393.8,3393.4,4.0545]
[1735477165040,0.29513,3393.6,3393.3,0.29515]
[1735477165244,0.4648,3393.5,3393.3,0.29515]
[1735477166549,3.92065496,3393.5,3393.3,0.29515]
[1735477168044,3.92065496,3393.5,3393.4,0.29514]
[1735477168947,3.92065496,3393.5,3392.9,3.2078]
[1735477169148,0.29516,3393.2,3393.0,1.208]
[1735477169350,0.4416,3393.1,3393.0,1.208]
[1735477169648,0.8906,3393.1,3393.0,1.208]
[1735477170545,0.8906,3393.1,3393.0,1.50318]
[1735477171054,3.19433984,3393.1,3393.0,1.50318]
[1735477171244,3.19433984,3393.1,3393.0,0.29518]
[1735477171841,0.8906,3393.1,3393.0,0.74698]
[1735477173547,0.8906,3393.1,3393.0,1.95498]
[1735477173948,2.30373984,3393.2,3393.0,1.6598]
[1735477174153,2.30373984,3393.2,3393.1,0.29517]
[1735477174651,2.30373984,3393.2,3393.1,41.09517]
[1735477176058,2.30373984,3393.2,3393.0,1.50317]
[1735477177049,0.29516,3393.3,3393.0,1.50317]
[1735477177050,2.30373984,3393.1,3393.0,1.50317]
[1735477179957,2.30373984,3393.2,3393.0,1.208]
[1735477180257,2.30373984,3393.2,3393.1,0.29517]
[1735477180855,3.45585496,3393.3,3393.1,0.29517]
[1735477181054,3.45585496,3393.3,3393.2,0.29516]
[1735477183757,3.45585496,3393.3,3393.0,1.208]
[1735477183964,3.75100496,3393.3,3393.0,1.50317]
[1735477184754,2.30541887,3393.1,3393.0,1.208]
[1735477184954,2.30541887,3393.1,3393.0,1.50318]
[1735477185956,3.45585496,3393.2,3393.0,1.50318]
[1735477188367,3.45585496,3393.2,3393.0,1.49618]
[1735477189063,0.29517,3393.1,3393.0,1.201]
[1735477189258,3.45585496,3393.2,3393.0,1.201]
[1735477189459,3.75102496,3393.2,3393.0,1.201]
[1735477189662,3.75102496,3393.2,3392.8,3.2078]
[1735477189863,3.75102496,3393.2,3392.9,0.29519]
[1735477190057,3.45585496,3393.2,3392.9,0.29519]
[1735477190265,4.90358507,3393.1,3392.8,4.70399]
[1735477190462,4.60841507,3393.1,3393.0,0.29518]
[1735477194273,3.45840687,3393.1,3392.8,1.201]
[1735477194462,0.29518,3393.0,3392.8,1.201]
[1735477194665,0.4622,3392.9,3392.8,1.49619]
[1735477194864,0.9259,3392.9,3392.8,1.201]
[1735477195067,1.22109,3392.9,3392.8,1.201]
[1735477195366,0.29519,3392.8,3392.7,3.2078]
[1735477195668,0.75479,3392.8,3392.7,3.2078]
[1735477196568,0.2952,3392.7,3392.6,0.2952]
[1735477196776,0.29321573,3392.7,3392.6,0.2952]
[1735477197673,3.45755509,3392.7,3392.6,0.2952]
[1735477202672,3.91715509,3392.8,3392.6,0.2952]
[1735477202876,2.30404485,3392.7,3392.6,0.29521]
[1735477203682,2.30404485,3392.7,3392.4,42.001]
[1735477204067,0.29522,3392.5,3392.4,1.201]
[1735477204575,0.29522,3392.5,3392.3,3.2078]
[1735477204775,0.4562,3392.4,3392.3,4.4088]
[1735477204978,0.4562,3392.4,3392.3,4.70404]
[1735477205382,2.76010517,3392.4,3392.3,4.70404]
[1735477206684,3.18530517,3392.4,3392.3,4.70404]
[1735477206976,3.18530517,3392.4,3392.3,4.4088]
[1735477207779,3.48053517,3392.4,3392.3,3.2078]
[1735477209386,2.76010517,3392.4,3392.3,3.2078]
[1735477209686,4.34175509,3392.4,3392.3,3.50304]
[1735477210177,4.63698509,3392.4,3392.3,3.2078]
[1735477210376,0.29525,3392.1,3392.0,41.992]
[1735477210975,0.442,3392.3,3392.0,41.992]
[1735477211193,0.442,3392.3,3392.2,0.29525]
[1735477211383,0.8842,3392.4,3392.3,0.29524]
[1735477211683,0.4562,3392.4,3392.3,0.29524]
[1735477212180,2.75943978,3392.4,3392.3,0.29524]
[1735477213174,2.30323978,3392.4,3392.3,0.29524]
[1735477213475,2.30323978,3392.4,3392.3,3.50304]
[1735477214680,2.30323978,3392.7,3392.6,0.29521]
[1735477220986,3.45485967,3392.8,3392.7,0.2952]
[1735477222486,3.45485967,3392.9,3392.8,0.29519]
[1735477222683,3.45485967,3392.9,3392.8,1.48719]
[1735477224082,2.3447422,3392.9,3392.8,1.48719]
[1735477224282,0.9465422,3392.9,3392.8,9.69499]
[1735477224482,0.9465422,3392.9,3392.8,45.49499]
[1735477225087,2.30453319,3393.3,3392.8,49.83131588]
[1735477225382,2.30453319,3393.3,3393.2,0.29516]
[1735477226191,5.79744507,3393.6,3393.3,0.29515]
[1735477226192,4.60841507,3393.5,3393.3,0.29515]
[1735477226486,4.60841507,3393.5,3392.8,45.1998]
[1735477226487,4.60841507,3393.5,3393.2,0.29515]
[1735477226687,4.60841507,3393.5,3393.3,0.29515]
[1735477226887,4.90354507,3393.5,3393.4,1.192]
[1735477227989,4.60841507,3393.5,3393.4,1.48714]
[1735477229394,4.90354507,3393.5,3393.4,1.192]
[1735477229987,0.29513,3393.5,3393.4,1.192]
[1735477230887,0.29513,3393.5,3393.4,1.48714]
[1735477231292,0.29513,3393.5,3393.4,1.192]
[1735477231789,4.90354507,3393.5,3393.4,1.192]
[1735477231993,4.90354507,3393.5,3393.4,1.48714]
[1735477232493,4.90354507,3393.5,3393.4,1.192]
[1735477232795,0.29518,3393.0,3392.9,0.29518]
[1735477232993,0.29518,3393.0,3392.8,4.3998]
[1735477232994,0.29519,3392.9,3392.8,4.69499]
[1735477233392,4.60841507,3393.5,3392.8,3.2078]
[1735477233706,2.59886796,3393.0,3392.9,0.29518]
[1735477234391,2.30368796,3393.0,3392.9,0.29518]
[1735477234794,0.4423,3393.0,3392.9,0.29518]
[1735477234995,0.73748,3393.0,3392.9,0.29518]
[1735477235794,0.4423,3393.0,3392.9,0.29518]
[1735477237794,0.73748,3393.0,3392.9,0.29518]
[1735477240094,0.4423,3393.0,3392.9,0.29518]
[1735477240292,0.8649,3393.0,3392.9,0.29518]
[1735477241798,1.16008,3393.0,3392.9,0.29518]
[1735477242298,0.8649,3393.0,3392.9,0.29518]
[1735477242999,1.16008,3393.0,3392.9,0.29518]
[1735477243395,0.8649,3393.0,3392.9,0.29518]
[1735477247894,3.16808,3393.0,3392.9,0.29518]
[1735477253593,2.74548,3393.0,3392.9,0.29518]
[1735477253801,2.30318,3393.0,3392.9,0.29518]
[1735477254906,2.30318,3393.1,3393.0,0.29518]
[1735477259608,0.4295,3393.3,3393.2,0.29516]
[1735477261510,5.03791507,3393.3,3393.2,0.29516]
[1735477262106,4.60841507,3393.3,3393.2,0.29516]
[1735477264316,0.8757,3393.4,3393.2,0.29516]
[1735477264507,0.8757,3393.4,3393.3,0.29515]
[1735477265712,5.48411507,3393.4,3393.3,0.29515]
[1735477267213,0.8757,3393.4,3393.3,0.29515]
[1735477268716,3.18136197,3393.4,3393.3,0.29515]
[1735477272012,2.30566197,3393.4,3393.3,3.50295]
[1735477272212,2.30566197,3393.4,3393.3,3.95115]
[1735477272416,2.30566197,3393.6,3393.3,49.08751588]
[1735477272616,2.30566197,3393.6,3393.5,0.29513]
[1735477273012,2.30566197,3393.6,3393.5,5.29513]
[1735477274312,2.30566197,3393.6,3393.5,10.44958444]
[1735477274524,2.30566197,3394.1,3394.0,0.29509]
[1735477274815,2.30566197,3394.1,3394.0,1.47609]
[1735477275814,2.30566197,3394.2,3394.1,0.29508]
[1735477277220,3.18286197,3394.3,3394.2,0.29507]
[1735477277713,3.18286197,3394.3,3394.2,3.50287]
[1735477278510,0.8772,3394.3,3394.2,3.50287]
[1735477279615,0.8772,3394.3,3394.2,44.30287]
[1735477288327,0.8772,3394.3,3394.2,45.48287]
[1735477289326,0.8772,3394.3,3394.2,44.30287]
[1735477289628,0.2951,3393.9,3393.7,3.2078]
[1735477289823,1.3486,3393.8,3393.7,3.2078]
[1735477290327,1.64371,3393.8,3393.7,2.509]
[1735477290528,1.3486,3393.8,3393.7,2.509]
[1735477290828,1.3486,3393.8,3393.6,1.18]
[1735477290829,4.85151,3393.8,3393.6,1.18]
[1735477291029,4.5564,3393.8,3393.6,1.18]
[1735477291223,4.85151,3393.8,3393.6,1.18]
[1735477291823,4.5564,3393.8,3393.6,1.47512]
[1735477292421,4.5564,3393.8,3393.6,1.18]
[1735477292624,4.5564,3393.8,3393.3,1.181]
[1735477292822,10.29419,3393.8,3393.1,40.8]
[1735477293026,0.29516,3393.2,3393.1,40.8]
[1735477293229,3.2078,3393.4,3392.8,1.181]
[1735477293529,0.9113,3393.1,3392.9,0.29518]
[1735477293939,0.4541,3393.0,3392.9,0.29518]
[1735477294542,0.4541,3393.0,3392.9,1.47618]
[1735477295641,0.448,3393.1,3393.0,0.29518]
[1735477295843,0.448,3393.1,3393.0,3.50298]
[1735477296141,0.448,3393.1,3393.0,44.30298]
[1735477296742,0.9209,3393.4,3393.3,0.29515]
[1735477298747,0.9209,3393.4,3393.3,41.09515]
[1735477300650,0.9209,3393.4,3393.3,40.8]
[1735477303336,0.9209,3393.4,3393.3,41.09515]
[1735477303846,0.9209,3393.4,3393.3,40.8]
[1735477304145,1.21604,3393.4,3393.3,1.18]
[1735477306541,0.29517,3393.1,3392.8,0.29519]
[1735477306847,0.4197,3393.0,3392.9,1.47518]
[1735477307448,0.4197,3393.0,3392.9,1.18]
[1735477307844,0.4197,3393.0,3392.9,1.47518]
[1735477308655,0.29519,3392.9,3392.6,3.50301]
[1735477308847,0.8969,3392.9,3392.6,3.2078]
[1735477309046,0.2952,3392.8,3392.6,3.2078]
[1735477309849,1.19209,3392.9,3392.6,3.50301]
[1735477310450,1.19209,3392.9,3392.6,0.29521]
[1735477310950,0.2952,3392.8,3392.5,3.50302]
[1735477311644,0.2952,3392.8,3392.6,0.29521]
[1735477312350,1.19209,3392.9,3392.6,0.29521]
[1735477312950,1.19209,3392.9,3392.7,0.2952]
[1735477313351,0.29519,3392.8,3392.7,0.2952]
[1735477314549,0.29521,3392.7,3392.6,0.29521]
[1735477314748,3.2078,3392.7,3392.2,40.8]
[1735477315050,3.2078,3392.3,3391.7,4.63435353]
[1735477315358,1.3166,3392.2,3392.1,0.29525]
[1735477317052,3.2078,3392.3,3392.2,0.29525]
[1735477321154,3.50304,3392.3,3392.2,1.18]
[1735477321557,3.50304,3392.3,3391.6,0.2114794]
[1735477321851,1.60365,3392.2,3392.0,0.29526]
[1735477322046,1.3084,3392.2,3392.0,0.29526]
[1735477322251,1.3084,3392.2,3392.1,0.29525]
[1735477323051,1.3084,3392.2,3391.8,0.4197]
[1735477323258,1.3084,3392.2,3392.1,0.29525]
[1735477324459,3.2078,3392.3,3392.1,0.29525]
[1735477324659,4.5453,3392.3,3392.1,0.29525]
[1735477325353,4.5453,3392.3,3391.8,0.4197]
[1735477325559,4.84054,3392.3,3392.0,0.29526]
[1735477325860,0.29526,3392.1,3391.8,0.29528]
[1735477326054,0.29527,3392.0,3391.8,1.18]
[1735477326359,0.29529,3391.8,3391.5,44.3031]
[1735477326564,0.29529,3391.8,3391.6,1.18]
[1735477326565,1.3499,3391.7,3391.6,1.18]
[1735477326765,1.3499,3391.7,3391.6,1.4753]
[1735477327262,1.3499,3391.7,3391.5,44.3031]
[1735477327459,1.3499,3391.7,3391.6,1.18]
[1735477328053,1.3499,3391.7,3391.6,1.4753]
[1735477328963,1.3499,3391.7,3391.6,1.18]
[1735477329358,1.3499,3391.7,3391.1,3.50313]
[1735477329558,0.29532,3391.4,3391.1,3.50314]
[1735477329765,0.29532,3391.4,3391.1,3.2078]
[1735477329963,0.29531,3391.5,3391.1,3.50314]
[1735477330169,1.3499,3391.7,3391.1,3.2078]
[1735477330367,0.29533,3391.3,3391.1,3.2078]
[1735477330566,0.4652,3391.2,3391.1,3.2078]
[1735477332068,0.4652,3391.2,3391.1,3.50314]
[1735477335565,3.673,3391.2,3390.7,41.2222]
[1735477335772,3.673,3391.2,3391.1,1.179]
[1735477335971,3.673,3391.2,3391.1,1.47434]
[1735477338872,3.673,3391.2,3391.1,1.179]
[1735477339969,4.0954,3391.2,3391.1,1.179]
[1735477340475,4.0954,3391.2,3391.0,0.29535]
[1735477341275,4.0954,3391.2,3391.1,0.29534]
[1735477341878,4.0954,3391.2,3390.9,1.179]
[1735477342372,4.0954,3391.2,3391.0,0.29535]
[1735477342772,4.0954,3391.2,3391.1,0.29534]
[1735477342967,4.0954,3391.2,3390.9,1.179]
[1735477343179,4.0954,3391.2,3391.0,0.29535]
[1735477344580,0.8876,3391.2,3391.0,0.29535]
[1735477344781,0.8876,3391.2,3390.9,1.179]
[1735477344977,0.8876,3391.2,3391.1,0.29534]
[1735477346777,0.8876,3391.2,3391.0,0.29534]
[1735477347083,1.18294,3391.2,3390.9,1.47436]
[1735477347482,0.8876,3391.2,3391.0,0.29535]
[1735477348586,0.8876,3391.2,3391.1,0.29534]
[1735477349583,0.8876,3391.2,3391.0,0.29535]
[1735477349976,0.29534,3391.1,3390.5,3.50319]
[1735477350178,0.29534,3391.1,3389.9,5.37296353]
[1735477350179,3.2078,3390.8,3390.1,3.2078]
[1735477350578,0.4262,3390.7,3390.1,3.50323]
[1735477350772,0.4386,3390.6,3390.1,3.2078]
[1735477351085,0.4386,3390.6,3390.5,0.29539]
[1735477355086,0.4386,3390.6,3390.3,1.179]
[1735477355289,0.73399,3390.6,3390.3,1.47441]
[1735477355488,0.4386,3390.6,3390.3,1.179]
[1735477355688,0.2954,3390.4,3390.3,1.179]
[1735477355986,0.2954,3390.5,3390.3,1.179]
[1735477356182,0.29539,3390.5,3390.3,1.179]
[1735477356487,0.4386,3390.6,3390.2,0.29542]
[1735477356488,0.2954,3390.4,3390.2,0.29542]
[1735477357187,0.4386,3390.6,3390.1,3.50323]
[1735477357390,0.29541,3390.3,3390.1,3.50323]
[1735477357584,0.4481,3390.2,3390.1,3.50323]
[1735477357786,0.8903,3390.2,3390.1,3.50323]
[1735477358485,0.4386,3390.6,3390.1,3.2078]
[1735477358788,0.4422,3390.5,3390.4,0.2954]
[1735477359183,0.4422,3390.5,3390.4,41.0954]
[1735477359681,0.4422,3390.5,3390.4,0.2954]
[1735477360682,0.7376,3390.5,3390.3,0.2954]
[1735477360988,0.7376,3390.5,3390.3,0.29541]
[1735477361289,0.4422,3390.5,3390.4,0.2954]
[1735477362898,0.73759,3390.5,3390.4,0.2954]
[1735477363187,5.51346197,3390.8,3390.3,0.4481]
[1735477363383,0.7458,3390.5,3390.3,0.2954]
[1735477363589,0.4504,3390.5,3390.2,1.177]
[1735477363790,0.4504,3390.5,3390.4,0.2954]
[1735477366693,0.74579,3390.5,3390.4,0.2954]
[1735477367296,0.4504,3390.5,3390.2,1.177]
[1735477367498,0.7458,3390.5,3390.3,0.29541]
[1735477367997,0.2954,3390.4,3390.2,1.177]
[1735477368190,0.4504,3390.5,3390.1,3.2078]
[1735477368394,0.29543,3390.1,3389.7,3.2078]
[1735477368689,0.8549,3390.0,3389.9,0.29545]
[1735477368890,0.29541,3390.4,3390.1,0.29542]
[1735477369090,1.15031,3390.4,3390.2,0.29542]
[1735477369288,1.15031,3390.4,3389.8,0.4259]
[1735477369289,0.29542,3390.3,3390.0,0.29543]
[1735477369494,0.8549,3390.4,3390.3,0.29541]
[1735477369893,1.15031,3390.4,3390.2,0.29542]
[1735477370291,0.8549,3390.4,3390.2,0.29541]
[1735477370499,1.1503,3390.4,3390.2,0.29541]
[1735477370798,0.8549,3390.4,3390.3,0.29541]
[1735477374598,0.8549,3390.4,3390.3,1.47241]
[1735477376702,1.1503,3390.4,3390.3,1.47241]
[1735477377202,3.45596197,3390.4,3390.3,1.47241]
[1735477379501,3.45596197,3390.4,3390.3,0.29541]
[1735477379705,3.16056197,3390.4,3389.9,1.177]
[1735477380006,3.16056197,3390.4,3390.3,0.29541]
[1735477380197,0.8549,3390.4,3390.3,0.29541]
[1735477380500,1.1503,3390.4,3390.3,0.29541]
[1735477382302,0.29545,3389.9,3389.8,0.29545]
[1735477382508,1.59343,3390.4,3389.7,4.3848]
[1735477382799,1.59343,3390.4,3389.6,0.29547]
[1735477382800,1.61835,3389.8,3389.6,0.29547]
[1735477383002,0.29547,3389.6,3389.5,4.63435353]
[1735477383202,0.29547,3389.6,3389.5,2.23535353]
[1735477383405,0.29547,3389.6,3389.5,0.81535353]
[1735477383711,3.2078,3389.7,3389.4,0.81535353]
[1735477383712,0.29548,3389.5,3389.4,0.81535353]
[1735477384597,1.3229,3389.8,3389.4,0.81535353]
[1735477384804,0.8647,3389.8,3389.7,0.29546]
[1735477385007,5.05171507,3389.8,3389.7,0.29546]
[1735477386204,0.4433,3389.8,3389.5,1.6356]
[1735477386600,0.4433,3389.8,3389.6,0.29547]
[1735477386807,0.4433,3389.8,3389.5,1.6356]
[1735477387107,3.50326,3389.7,3389.5,1.93108]
[1735477387405,3.2078,3389.7,3389.5,1.93208]
[1735477387605,3.2078,3389.7,3389.6,0.29547]
[1735477388307,3.2078,3389.7,3389.5,1.6366]
[1735477388509,3.2078,3389.7,3389.5,1.93208]
[1735477388709,3.2078,3389.7,3389.5,1.178]
[1735477388911,0.29548,3389.5,3389.3,1.6383]
[1735477389110,5.80260961,3389.7,3389.4,0.29549]
[1735477389312,0.29548,3389.6,3389.3,1.93379]
[1735477389506,0.4582,3389.5,3389.3,1.6383]
[1735477389707,1.21419,3389.5,3389.3,1.6383]
[1735477390112,0.9187,3389.5,3389.3,1.6383]
[1735477390409,0.29549,3389.4,3389.3,1.6383]
[1735477390610,0.9187,3389.5,3389.3,1.6383]
[1735477390811,3.51352961,3389.5,3389.3,1.6383]
[1735477391013,3.21803961,3389.5,3389.3,1.6383]
[1735477391204,0.29549,3389.4,3389.3,1.178]
[1735477391406,3.21803961,3389.5,3389.3,1.178]
[1735477391707,3.21803961,3389.5,3389.4,0.29549]
[1735477391907,3.21803961,3389.5,3389.4,0.73599]
[1735477392115,0.9187,3389.5,3389.4,0.73599]
[1735477392300,3.44900942,3389.6,3389.4,0.4405]
[1735477392607,3.44900942,3389.6,3389.5,0.29548]
[1735477393110,2.29854494,3389.6,3389.5,41.09548]
[1735477393606,2.29854494,3389.6,3389.5,40.8]
[1735477393803,2.29854494,3389.6,3389.5,41.09548]
[1735477394311,2.59401494,3389.6,3389.5,0.29548]
[1735477394508,2.29854494,3389.6,3389.5,0.29548]
[1735477395210,2.59401494,3389.6,3389.4,0.73598]
[1735477395402,2.59401494,3389.6,3389.3,1.178]
[1735477395403,0.75518,3389.5,3389.3,0.2955]
[1735477395603,0.4361,3389.4,3389.3,0.2955]
[1735477396211,2.73464494,3389.4,3389.3,0.2955]
[1735477397209,3.03013494,3389.4,3389.3,0.2955]
[1735477397404,3.03013494,3389.4,3389.2,0.2955]
[1735477397611,0.4523,3389.3,3389.2,0.2955]
[1735477398810,2.29854494,3389.4,3389.3,0.2955]
[1735477399210,2.29854494,3389.4,3389.3,0.7431]
[1735477399409,3.05343494,3389.4,3389.3,0.4476]
[1735477399710,2.75794494,3389.4,3389.3,0.7431]
[1735477400507,2.75794494,3389.4,3389.2,1.6073]
[1735477400813,0.9028,3389.3,3389.2,1.90281]
[1735477401014,0.9028,3389.3,3389.2,0.72081]
[1735477401314,4.1106,3389.3,3389.2,0.29551]
[1735477403715,3.6736,3389.3,3389.2,0.29551]
[1735477404017,3.2078,3389.3,3389.2,0.74151]
[1735477404615,2.29854494,3389.4,3389.2,0.446]
[1735477404815,2.29854494,3389.4,3389.3,0.2955]
[1735477405814,2.29854494,3389.4,3389.2,1.628]
[1735477406015,3.6678,3389.3,3389.2,1.4775]
[1735477406321,0.29551,3389.2,3389.1,0.93081265]
[1735477406513,0.75361,3389.2,3389.1,0.93081265]
[1735477408422,3.05215494,3389.2,3389.1,0.93081265]
[1735477411719,4.20261942,3389.2,3389.1,0.93081265]
[1735477414528,0.75361,3389.2,3389.1,0.93081265]
[1735477417330,0.75361,3389.2,3389.1,1.22633265]
[1735477418039,0.75361,3389.2,3389.1,0.93081265]
[1735477418231,0.75361,3389.2,3389.1,1.22633265]
[1735477418431,4.19933016,3389.2,3389.1,1.22633265]
[1735477418927,4.19933016,3389.2,3389.1,0.93081265]
[1735477419727,4.19933016,3389.2,3389.1,0.93295366]
[1735477420738,5.36202507,3389.2,3389.1,0.93295366]
[1735477424940,0.75361,3389.2,3389.1,0.93295366]
[1735477426452,6.51467467,3389.2,3389.1,0.93295366]
[1735477427541,0.75361,3389.2,3389.1,0.93295366]
[1735477428142,0.75361,3389.2,3389.1,0.23375366]
[1735477431847,5.75361,3389.2,3389.1,0.23375366]
[1735477432153,0.98484967,3389.2,3389.1,0.23375366]
[1735477432554,0.29551,3389.2,3389.1,0.23375366]
[1735477433159,3.2078,3389.3,3389.2,0.29551]
[1735477433346,6.91327761,3389.3,3389.2,1.19871]
[1735477433546,6.91327761,3389.3,3389.2,1.63171]
[1735477433948,6.21367761,3389.3,3389.2,1.63171]
[1735477434950,3.74470632,3389.7,3389.2,1.3362]
[1735477435156,2.59497755,3389.6,3389.4,0.29548]
[1735477435354,2.29949755,3389.6,3389.2,1.3362]
[1735477435657,2.29949755,3389.6,3389.4,0.29548]
[1735477435658,2.59496755,3389.6,3389.4,0.29548]
[1735477435857,2.29949755,3389.6,3389.5,1.47548]
[1735477436056,2.92914387,3389.7,3389.6,0.29547]
[1735477436352,1.49864387,3389.7,3389.6,3.50327]
[1735477436560,0.75274387,3389.7,3389.6,8.50327]
[1735477437550,0.75274387,3389.7,3389.6,49.30327]
[1735477437747,3.2078,3390.5,3390.0,0.29543]
[1735477437953,0.2954,3390.4,3389.9,0.29544]
[1735477438152,3.5032,3390.5,3390.0,0.29543]
[1735477438653,3.2078,3390.5,3389.7,0.29546]
[1735477438955,3.5032,3390.5,3390.0,0.29543]
[1735477439165,3.2078,3390.1,3389.2,7.3971303]
[1735477439450,3.2078,3389.7,3389.3,0.29549]
[1735477439856,3.2078,3389.7,3389.2,8.5771303]
[1735477440050,3.2078,3389.7,3389.3,0.29549]
[1735477440651,3.50326,3389.7,3389.2,8.4270303]
[1735477440847,0.4584,3389.6,3389.2,8.4270303]
[1735477441048,0.4584,3389.6,3389.2,8.1315303]
[1735477441358,0.4584,3389.6,3389.2,1.4755]
[1735477441556,0.4584,3389.6,3389.2,1.18]
[1735477441756,0.2955,3389.3,3389.1,1.41375366]
[1735477441954,0.4584,3389.6,3389.1,1.41375366]
[1735477442151,0.29549,3389.5,3389.1,1.41375366]
[1735477442462,0.4584,3389.6,3389.1,1.41375366]
[1735477442463,0.29549,3389.4,3389.1,1.41375366]
[1735477442655,0.74599,3389.4,3389.1,1.41375366]
[1735477442851,0.29551,3389.3,3389.1,1.41375366]
[1735477443059,3.2078,3389.3,3389.1,0.23375366]
[1735477443363,0.29551,3389.2,3389.1,0.23375366]
[1735477444156,3.2078,3389.3,3389.1,0.52926366]
[1735477444361,3.2078,3389.3,3389.1,0.23375366]
[1735477445461,3.5033,3389.3,3389.1,0.23375366]
[1735477446652,0.2955,3389.3,3389.1,0.23375366]
[1735477446957,3.2078,3389.2,3389.1,0.23375366]
[1735477447158,0.2955,3389.3,3389.1,0.23375366]
[1735477447357,3.2078,3389.2,3389.1,0.23375366]
[1735477447760,3.2078,3389.2,3389.1,0.52927366]
[1735477448369,3.2078,3389.2,3389.1,1.70927366]
[1735477450468,0.4584,3389.6,3389.1,1.41375366]
[1735477450661,0.4584,3389.6,3389.4,0.29549]
[1735477451972,3.2078,3389.7,3389.6,0.29547]
[1735477452171,4.5989951,3389.9,3389.8,0.29545]
[1735477452372,4.5989951,3390.0,3389.9,0.29545]
[1735477454175,4.8943651,3390.8,3389.7,3.2078]
[1735477454367,0.29539,3390.6,3390.2,0.29542]
[1735477454567,0.29539,3390.6,3390.4,0.2954]
[1735477455269,5.3269651,3390.8,3390.5,0.29539]
[1735477455471,5.3269651,3390.8,3390.3,1.193]
[1735477455472,5.0315951,3390.8,3390.3,1.193]
[1735477455677,0.72797,3390.8,3390.5,0.29539]
[1735477456170,0.72797,3390.8,3390.6,0.29539]
[1735477457475,0.72797,3390.8,3390.7,0.29538]
[1735477458171,0.4326,3390.8,3390.7,0.29538]
[1735477459273,3.6404,3390.8,3390.7,0.29538]
[1735477462375,0.4326,3390.8,3390.7,0.29538]
[1735477463070,0.4326,3390.8,3390.7,1.48738]
[1735477463569,3.2078,3391.2,3390.7,1.48738]
[1735477463775,3.2078,3391.2,3391.1,0.29534]
[1735477467580,0.8931,3391.4,3391.3,0.29532]
[1735477469184,3.2078,3391.5,3391.0,0.73838]
[1735477469380,5.74874387,3392.7,3392.4,0.29523]
[1735477469883,0.4428,3392.6,3392.4,0.29523]
[1735477470284,0.429,3392.5,3392.4,0.29523]
[1735477471980,0.429,3392.5,3391.6,3.94603]
[1735477472187,0.29524,3392.3,3391.8,0.29528]
[1735477472385,0.73345,3392.2,3392.0,0.29526]
[1735477472586,0.4382,3392.2,3392.0,0.29526]
[1735477472785,0.73345,3392.2,3392.0,0.29526]
[1735477473588,0.4382,3392.2,3391.7,1.192]